{"text_format":"3","workbook":"xlsx","n_sheets":1,"sheets":["Přehled směn"],"not_rendered":{"defined_names":2},"read":"whole","date_system":"1900"}

{"sheet":"Přehled směn","index":0,"n_rows":59,"n_cols":13,"rows_kept":59,"merged":[[0,1,0,5],[1,2,1,4],[2,2,2,4],[2,10,2,12]]}
[null,"Přehled směn"]
[null,"Týden od: "]
[null,"Název oddělení: "]
[]
[null,"PONDĚLÍ","7:00","8:00","9:00","10:00","11:00","12:00","13:00","14:00","15:00","Nemoc","CELKEM"]
[null,"Kamila F.","manažer","manažer","manažer","manažer","manažer","manažer","manažer","manažer","manažer",null,{"$f":"COUNTIF(Table1[[#This Row],[7:00]:[15:00]],\"*\")","v":9}]
[null,"Tomáš I.",null,"pokladní","pokladní","pokladní","pokladní",{"$nulls":5},{"$f":"COUNTIF(Table1[[#This Row],[7:00]:[15:00]],\"*\")","v":4}]
[null,"Jakub S.",null,"recepční","recepční","recepční","recepční ","recepční","recepční","recepční",null,null,{"$f":"COUNTIF(Table1[[#This Row],[7:00]:[15:00]],\"*\")","v":7}]
[null,"Jan M.",null,"recepční","recepční","recepční","recepční ","recepční","recepční","recepční",null,null,{"$f":"COUNTIF(Table1[[#This Row],[7:00]:[15:00]],\"*\")","v":7}]
[null,"Šimon P.",{"$nulls":9},"Nemoc",{"$f":"COUNTIF(Table1[[#This Row],[7:00]:[15:00]],\"*\")","v":0}]
[null,"Tereza A.",{"$nulls":5},"pokladní","pokladní","pokladní","pokladní",null,{"$f":"COUNTIF(Table1[[#This Row],[7:00]:[15:00]],\"*\")","v":4}]
[]
[null,"ÚTERÝ","7:00","8:00","9:00","10:00","11:00","12:00","13:00","14:00","15:00","Nemoc","CELKEM"]
[null,"Kamila F.","manažer","manažer","manažer","manažer","manažer","manažer","manažer","manažer","manažer",null,{"$f":"COUNTIF(Table2[[#This Row],[7:00]:[15:00]],\"*\")","v":9}]
[null,"Tomáš I.",null,"pokladní","pokladní","pokladní","pokladní",{"$nulls":5},{"$f":"COUNTIF(Table2[[#This Row],[7:00]:[15:00]],\"*\")","v":4}]
[null,"Jakub S.",null,"recepční","recepční","recepční","recepční ","recepční","recepční","recepční",null,null,{"$f":"COUNTIF(Table2[[#This Row],[7:00]:[15:00]],\"*\")","v":7}]
[null,"Jan M.",null,"recepční","recepční","recepční","recepční ","recepční","recepční","recepční",null,null,{"$f":"COUNTIF(Table2[[#This Row],[7:00]:[15:00]],\"*\")","v":7}]
[null,"Šimon P.",{"$nulls":9},"Nemoc",{"$f":"COUNTIF(Table2[[#This Row],[7:00]:[15:00]],\"*\")","v":0}]
[null,"Tereza A.",{"$nulls":5},"pokladní","pokladní","pokladní","pokladní",null,{"$f":"COUNTIF(Table2[[#This Row],[7:00]:[15:00]],\"*\")","v":4}]
[]
[null,"STŘEDA","7:00","8:00","9:00","10:00","11:00","12:00","13:00","14:00","15:00","Nemoc","CELKEM"]
[null,"Kamila F.","manažer","manažer","manažer","manažer","manažer","manažer","manažer","manažer","manažer",null,{"$f":"COUNTIF(Table3[[#This Row],[7:00]:[15:00]],\"*\")","v":9}]
[null,"Tomáš I.",null,"pokladní","pokladní","pokladní","pokladní",{"$nulls":5},{"$f":"COUNTIF(Table3[[#This Row],[7:00]:[15:00]],\"*\")","v":4}]
[null,"Jakub S.",null,"recepční","recepční","recepční","recepční ","recepční","recepční","recepční",null,null,{"$f":"COUNTIF(Table3[[#This Row],[7:00]:[15:00]],\"*\")","v":7}]
[null,"Jan M.",null,"recepční","recepční","recepční","recepční ","recepční","recepční","recepční",null,null,{"$f":"COUNTIF(Table3[[#This Row],[7:00]:[15:00]],\"*\")","v":7}]
[null,"Šimon P.",{"$nulls":9},"Nemoc",{"$f":"COUNTIF(Table3[[#This Row],[7:00]:[15:00]],\"*\")","v":0}]
[null,"Tereza A.",{"$nulls":5},"pokladní","pokladní","pokladní","pokladní",null,{"$f":"COUNTIF(Table3[[#This Row],[7:00]:[15:00]],\"*\")","v":4}]
[]
[null,"ČTVRTEK","7:00","8:00","9:00","10:00","11:00","12:00","13:00","14:00","15:00","Nemoc","CELKEM"]
[null,"Kamila F.","manažer","manažer","manažer","manažer","manažer","manažer","manažer","manažer","manažer",null,{"$f":"COUNTIF(Table4[[#This Row],[7:00]:[15:00]],\"*\")","v":9}]
[null,"Tomáš I.",null,"pokladní","pokladní","pokladní","pokladní",{"$nulls":5},{"$f":"COUNTIF(Table4[[#This Row],[7:00]:[15:00]],\"*\")","v":4}]
[null,"Jakub S.",null,"recepční","recepční","recepční","recepční ","recepční","recepční","recepční",null,null,{"$f":"COUNTIF(Table4[[#This Row],[7:00]:[15:00]],\"*\")","v":7}]
[null,"Jan M.",null,"recepční","recepční","recepční","recepční ","recepční","recepční","recepční",null,null,{"$f":"COUNTIF(Table4[[#This Row],[7:00]:[15:00]],\"*\")","v":7}]
[null,"Šimon P.",{"$nulls":9},"Nemoc",{"$f":"COUNTIF(Table4[[#This Row],[7:00]:[15:00]],\"*\")","v":0}]
[null,"Tereza A.",{"$nulls":5},"pokladní","pokladní","pokladní","pokladní",null,{"$f":"COUNTIF(Table4[[#This Row],[7:00]:[15:00]],\"*\")","v":4}]
[]
[null,"PÁTEK","7:00","8:00","9:00","10:00","11:00","12:00","13:00","14:00","15:00","Nemoc","CELKEM"]
[null,"Kamila F.","manažer","manažer","manažer","manažer","manažer","manažer","manažer","manažer","manažer",null,{"$f":"COUNTIF(Table5[[#This Row],[7:00]:[15:00]],\"*\")","v":9}]
[null,"Tomáš I.",null,"pokladní","pokladní","pokladní","pokladní",{"$nulls":5},{"$f":"COUNTIF(Table5[[#This Row],[7:00]:[15:00]],\"*\")","v":4}]
[null,"Jakub S.",null,"recepční","recepční","recepční","recepční ","recepční","recepční","recepční",null,null,{"$f":"COUNTIF(Table5[[#This Row],[7:00]:[15:00]],\"*\")","v":7}]
[null,"Jan M.",null,"recepční","recepční","recepční","recepční ","recepční","recepční","recepční",null,null,{"$f":"COUNTIF(Table5[[#This Row],[7:00]:[15:00]],\"*\")","v":7}]
[null,"Šimon P.",{"$nulls":9},"Nemoc",{"$f":"COUNTIF(Table5[[#This Row],[7:00]:[15:00]],\"*\")","v":0}]
[null,"Tereza A.",{"$nulls":5},"pokladní","pokladní","pokladní","pokladní",null,{"$f":"COUNTIF(Table5[[#This Row],[7:00]:[15:00]],\"*\")","v":4}]
[]
[null,"SOBOTA","7:00","8:00","9:00","10:00","11:00","12:00","13:00","14:00","15:00","Nemoc","CELKEM"]
[null,"Kamila F.","manažer","manažer","manažer","manažer","manažer","manažer","manažer","manažer","manažer",null,{"$f":"COUNTIF(Table6[[#This Row],[7:00]:[15:00]],\"*\")","v":9}]
[null,"Tomáš I.",null,"pokladní","pokladní","pokladní","pokladní",{"$nulls":5},{"$f":"COUNTIF(Table6[[#This Row],[7:00]:[15:00]],\"*\")","v":4}]
[null,"Jakub S.",null,"recepční","recepční","recepční","recepční ","recepční","recepční","recepční",null,null,{"$f":"COUNTIF(Table6[[#This Row],[7:00]:[15:00]],\"*\")","v":7}]
[null,"Jan M.",null,"recepční","recepční","recepční","recepční ","recepční","recepční","recepční",null,null,{"$f":"COUNTIF(Table6[[#This Row],[7:00]:[15:00]],\"*\")","v":7}]
[null,"Šimon P.",{"$nulls":9},"Nemoc",{"$f":"COUNTIF(Table6[[#This Row],[7:00]:[15:00]],\"*\")","v":0}]
[null,"Tereza A.",{"$nulls":5},"pokladní","pokladní","pokladní","pokladní",null,{"$f":"COUNTIF(Table6[[#This Row],[7:00]:[15:00]],\"*\")","v":4}]
[]
[null,"NEDĚLE","7:00","8:00","9:00","10:00","11:00","12:00","13:00","14:00","15:00","Nemoc","CELKEM"]
[null,"Kamila F.","manažer","manažer","manažer","manažer","manažer","manažer","manažer","manažer","manažer",null,{"$f":"COUNTIF(Table7[[#This Row],[7:00]:[15:00]],\"*\")","v":9}]
[null,"Tomáš I.",null,"pokladní","pokladní","pokladní","pokladní",{"$nulls":5},{"$f":"COUNTIF(Table7[[#This Row],[7:00]:[15:00]],\"*\")","v":4}]
[null,"Jakub S.",null,"recepční","recepční","recepční","recepční ","recepční","recepční","recepční",null,null,{"$f":"COUNTIF(Table7[[#This Row],[7:00]:[15:00]],\"*\")","v":7}]
[null,"Jan M.",null,"recepční","recepční","recepční","recepční ","recepční","recepční","recepční",null,null,{"$f":"COUNTIF(Table7[[#This Row],[7:00]:[15:00]],\"*\")","v":7}]
[null,"Šimon P.",{"$nulls":9},"Nemoc",{"$f":"COUNTIF(Table7[[#This Row],[7:00]:[15:00]],\"*\")","v":0}]
[null,"Tereza A.",{"$nulls":5},"pokladní","pokladní","pokladní","pokladní",null,{"$f":"COUNTIF(Table7[[#This Row],[7:00]:[15:00]],\"*\")","v":4}]